fUST/lending_fUST_20260523
["ID","MTS","AMOUNT","RATE_DAILY","PERIOD"]
[422846911,1779521100000,-3800.0,5.513e-05,2]
[422846913,1779521100000,-584.71966194,5.598e-05,2]
[422846912,1779521100000,-476.445,5.569e-05,2]
[422846914,1779521100000,5000.0,5.403e-05,2]
[422846916,1779521194000,-5000.0,5.595e-05,2]
[422846915,1779521194000,-5000.0,5.539e-05,2]
[422846917,1779521211000,-5000.0,5.538e-05,2]
[422846918,1779521233000,-5000.0,5.538e-05,2]
[422846919,1779521245000,-5000.0,5.594e-05,2]
[422846920,1779521256000,-5000.0,5.594e-05,2]
[422846921,1779521279000,-5000.0,5.538e-05,2]
[422846922,1779521280000,-5000.0,5.594e-05,2]
[422846923,1779521306000,-5000.0,5.483e-05,2]
[422846924,1779521307000,-5000.0,5.538e-05,2]
[422846982,1779521431000,-751.34537396,5.538e-05,2]
[422846975,1779521431000,-4236.28195971,5.483e-05,2]
[422846980,1779521431000,-3329.479525,5.538e-05,2]
[422846977,1779521431000,-573.0252687,5.511e-05,2]
[422846978,1779521431000,-473.03992912,5.538e-05,2]
[422847004,1779521438000,-400.02095422,5.71e-05,2]
[422847001,1779521438000,-300.0,5.592e-05,2]
[422847002,1779521438000,-5000.0,5.594e-05,2]
[422847000,1779521438000,-446.13517192,5.538e-05,2]
[422847003,1779521438000,-398.61061215,5.71e-05,2]
[422847021,1779521440000,-4369.70325648,5.71e-05,2]
[422847022,1779521440000,-831.74568273,5.71e-05,2]
[422847037,1779521443000,-58.25360591,5.71e-05,2]
[422847086,1779521455000,-160.0,7.626e-05,2]
[422847074,1779521455000,-300.0,5.711e-05,2]
[422847085,1779521455000,-676.16981707,7.511e-05,2]
[422847075,1779521455000,-300.0,5.711e-05,2]
[422847079,1779521455000,-720.0,6.407e-05,2]
[422847072,1779521455000,-300.0,5.711e-05,2]
[422847071,1779521455000,-300.0,5.711e-05,2]
[422847066,1779521455000,-266.29173472,5.711e-05,2]
[422847077,1779521455000,-600.0,5.824e-05,2]
[422847073,1779521455000,-300.0,5.711e-05,2]
[422847089,1779521455000,-160.0,7.626e-05,2]
[422847067,1779521455000,-33.70826528,5.711e-05,2]
[422847069,1779521455000,-300.0,5.711e-05,2]
[422847070,1779521455000,-300.0,5.711e-05,2]
[422847064,1779521455000,-300.0,5.711e-05,2]
[422847065,1779521455000,-300.0,5.711e-05,2]
[422847063,1779521455000,-300.0,5.711e-05,2]
[422847062,1779521455000,-300.0,5.711e-05,2]
[422847061,1779521455000,-196.561,5.711e-05,2]
[422847060,1779521455000,-14200.5653913,5.71e-05,2]
[422847080,1779521455000,-151.0,6.5e-05,2]
[422847068,1779521455000,-300.0,5.711e-05,2]
[422847078,1779521455000,-420.0,6.151e-05,2]
[422847099,1779521455000,-500.68,7.8e-05,2]
[422847076,1779521455000,-300.0,5.711e-05,2]
[422847103,1779521455000,-366.0,7.8e-05,2]
[422847101,1779521455000,-1061.058894,7.8e-05,2]
[422847105,1779521455000,-23051.41162065,7.8e-05,2]
[422847104,1779521455000,-4246.5495791,7.8e-05,2]
[422847102,1779521455000,-183986.88781512,7.8e-05,2]
[422847100,1779521455000,-5000.0,6e-05,2]
[422847083,1779521455000,-864.0,7.047e-05,2]
[422847094,1779521455000,-927.1608562,7.8e-05,2]
[422847093,1779521455000,-6794.09413915,7.8e-05,2]
[422847087,1779521455000,-161.73153808,7.626e-05,2]
[422847098,1779521455000,-797.9436118,7.8e-05,2]
[422847095,1779521455000,-1891.0220345,7.8e-05,2]
[422847092,1779521455000,-772.78288199,7.8e-05,2]
[422847081,1779521455000,-231.6381969,6.712e-05,2]
[422847082,1779521455000,-587.0,6.766e-05,2]
[422847088,1779521455000,-766.63845589,7.626e-05,2]
[422847084,1779521455000,-823.0,7.443e-05,2]
[422847090,1779521455000,-160.0,7.626e-05,2]
[422847091,1779521455000,-1000.0,7.752e-05,2]
[422847097,1779521455000,-447.37382858,7.8e-05,2]
[422847096,1779521455000,-418.93857618,7.8e-05,2]
[422847106,1779521456000,162.832273,2.988e-05,2]
[422847155,1779522452000,-331.0,5.458e-05,2]
[422847156,1779522452000,-727.39161251,5.963e-05,2]
[422847154,1779522452000,-574.90947539,5.431e-05,2]
[422847153,1779522452000,-300.0,5.43e-05,2]
[422847152,1779522452000,-5000.0,5.35e-05,2]
[422847151,1779522452000,-5000.0,5.296e-05,2]
[422847215,1779522632000,-405.7834984,7.449e-05,2]
[422847217,1779522632000,-500.0,7.449e-05,2]
[422847213,1779522632000,-500.0,7.449e-05,2]
[422847188,1779522632000,-300.0,6.095e-05,2]
[422847186,1779522632000,-300.0,6.095e-05,2]
[422847181,1779522632000,-198.28698896,6.095e-05,2]
[422847184,1779522632000,-300.0,6.095e-05,2]
[422847185,1779522632000,-300.0,6.095e-05,2]
[422847183,1779522632000,-300.0,6.095e-05,2]
[422847182,1779522632000,-101.71301104,6.095e-05,2]
[422847180,1779522632000,-300.0,6.095e-05,2]
[422847174,1779522632000,-419.5997502,5.881e-05,2]
[422847173,1779522632000,-5000.0,5.822e-05,2]
[422847178,1779522632000,-300.0,6.095e-05,2]
[422847176,1779522632000,-5000.0,5.903e-05,2]
[422847177,1779522632000,-162.832273,5.976e-05,2]
[422847175,1779522632000,-300.0,5.902e-05,2]
[422847179,1779522632000,-300.0,6.095e-05,2]
[422847187,1779522632000,-300.0,6.095e-05,2]
[422847189,1779522632000,-300.0,6.095e-05,2]
[422847221,1779522632000,-77.50026824,7.449e-05,2]
[422847190,1779522632000,-300.0,6.095e-05,2]
[422847191,1779522632000,-300.0,6.095e-05,2]
[422847220,1779522632000,-259.03141476,7.449e-05,2]
[422847219,1779522632000,-240.96858524,7.449e-05,2]
[422847204,1779522632000,-172.62069701,7.449e-05,2]
[422847202,1779522632000,-500.0,7.449e-05,2]
[422847209,1779522632000,-438.59286119,7.449e-05,2]
[422847207,1779522632000,-327.37930299,7.449e-05,2]
[422847214,1779522632000,-94.2165016,7.449e-05,2]
[422847193,1779522632000,-300.0,6.095e-05,2]
[422847192,1779522632000,-300.0,6.095e-05,2]
[422847197,1779522632000,-2445.03091257,7.418e-05,2]
[422847195,1779522632000,-587.0,7.141e-05,2]
[422847200,1779522632000,-678.39318096,7.431e-05,2]
[422847194,1779522632000,-420.0,6.492e-05,2]
[422847198,1779522632000,-2157.77147315,7.418e-05,2]
[422847211,1779522632000,-61.40713881,7.449e-05,2]
[422847536,1779522640000,-950.53563348,7.45e-05,2]
[422847538,1779522640000,-950.53563348,7.45e-05,2]
[422847513,1779522640000,-500.0,7.449e-05,2]
[422847530,1779522640000,-950.53563348,7.45e-05,2]
[422847511,1779522640000,-500.0,7.449e-05,2]
[422847519,1779522640000,-231.36299925,7.449e-05,2]
[422847517,1779522640000,-500.0,7.449e-05,2]
[422847505,1779522640000,-500.0,7.449e-05,2]
[422847540,1779522640000,-950.53563348,7.45e-05,2]
[422847491,1779522640000,-415.519,7.449e-05,2]
[422847523,1779522640000,-500.0,7.449e-05,2]
[422847532,1779522640000,-950.53563348,7.45e-05,2]
[422847507,1779522640000,-500.0,7.449e-05,2]
[422847515,1779522640000,-500.0,7.449e-05,2]
[422847526,1779522640000,-500.0,7.449e-05,2]
[422847503,1779522640000,-6.98073176,7.449e-05,2]
[422847509,1779522640000,-641.37052312,7.449e-05,2]
[422847528,1779522640000,-950.53563348,7.45e-05,2]
[422847534,1779522640000,-950.53563348,7.45e-05,2]
[422847525,1779522640000,-161.47821125,7.449e-05,2]
[422847542,1779522640000,-950.53563348,7.45e-05,2]
[422847521,1779522640000,-500.0,7.449e-05,2]
[422847604,1779522641000,-396.0271935,7.551e-05,2]
[422847591,1779522641000,-201.43471339,7.5e-05,2]
[422847565,1779522641000,-998.06241516,7.45e-05,2]
[422847747,1779522641000,-500.0,8.219e-05,2]
[422847746,1779522641000,-1397.34,8.219e-05,2]
[422847616,1779522641000,-1569.95305954,7.808e-05,2]
[422847715,1779522641000,-500.0,8.219e-05,2]
[422847711,1779522641000,-500.0,8.219e-05,2]
[422847633,1779522641000,-984.28227901,8.1e-05,2]
[422847655,1779522641000,-980.31292441,8.2e-05,2]
[422847610,1779522641000,-160.0,7.621e-05,2]
[422847731,1779522641000,-500.0,8.219e-05,2]
[422847671,1779522641000,-500.0,8.219e-05,2]
[422847550,1779522641000,-950.53563348,7.45e-05,2]
[422847700,1779522641000,-500.0,8.219e-05,2]
[422847713,1779522641000,-1237.95,8.219e-05,2]
[422847716,1779522641000,-500.0,8.219e-05,2]
[422847563,1779522641000,-998.06241516,7.45e-05,2]
[422847620,1779522641000,-823.0,7.856e-05,2]
[422847696,1779522641000,-500.0,8.219e-05,2]
[422847704,1779522641000,-1019.6,8.219e-05,2]
[422847732,1779522641000,-1479.12,8.219e-05,2]
[422847544,1779522641000,-950.53563348,7.45e-05,2]
[422847667,1779522641000,-661.5754,8.219e-05,2]
[422847674,1779522641000,-546.66,8.219e-05,2]
[422847612,1779522641000,-161.73153808,7.621e-05,2]
[422847692,1779522641000,-500.0,8.219e-05,2]
[422847577,1779522641000,-1244.25114422,7.45e-05,2]
[422847706,1779522641000,-531.93,8.219e-05,2]
[422847727,1779522641000,-500.0,8.219e-05,2]
[422847573,1779522641000,-998.06241516,7.45e-05,2]
[422847587,1779522641000,-163.02422954,7.495e-05,2]
[422847623,1779522641000,-500.0,7.991e-05,2]
[422847637,1779522641000,-401.0,8.1e-05,2]
[422847657,1779522641000,-980.31292441,8.2e-05,2]
[422847661,1779522641000,-3223.91118442,8.2e-05,2]
[422847665,1779522641000,-400.0,8.21e-05,4]
[422847694,1779522641000,-973.74,8.219e-05,2]
[422847702,1779522641000,-500.0,8.219e-05,2]
[422847579,1779522641000,-1244.25114422,7.45e-05,2]
[422847719,1779522641000,-551.16,8.219e-05,2]
[422847722,1779522641000,-670.18,8.219e-05,2]
[422847725,1779522641000,-500.0,8.219e-05,2]
[422847738,1779522641000,-1188.89,8.219e-05,2]
[422847744,1779522641000,-500.0,8.219e-05,2]
[422847751,1779522641000,-1873.78,8.219e-05,2]
[422847753,1779522641000,-500.0,8.219e-05,2]
[422847557,1779522641000,-950.53563348,7.45e-05,2]
[422847639,1779522641000,-2204.0,8.152e-05,2]
[422847669,1779522641000,-500.0,8.219e-05,2]
[422847682,1779522641000,-521.15,8.219e-05,2]
[422847714,1779522641000,-500.0,8.219e-05,2]
[422847548,1779522641000,-950.53563348,7.45e-05,2]
[422847554,1779522641000,-950.53563348,7.45e-05,2]
[422847581,1779522641000,-1244.25114422,7.45e-05,2]
[422847589,1779522641000,-211178.70469644,7.5e-05,2]
[422847712,1779522641000,-500.0,8.219e-05,2]
[422847567,1779522641000,-998.06241516,7.45e-05,2]
[422847635,1779522641000,-980.31292441,8.1e-05,2]
[422847684,1779522641000,-1669.62,8.219e-05,2]
[422847678,1779522641000,-500.0,8.219e-05,2]
[422847583,1779522641000,-233451.02295987,7.451e-05,2]
[422847625,1779522641000,-984.28227901,8e-05,2]
[422847618,1779522641000,-3528.86198958,7.808e-05,2]
[422847641,1779522641000,-1413.0,8.152e-05,2]
[422847631,1779522641000,-486.954,8.05e-05,2]
[422847651,1779522641000,-150.038,8.152e-05,2]
[422847720,1779522641000,-500.0,8.219e-05,2]
[422847724,1779522641000,-1659.56,8.219e-05,2]
[422847730,1779522641000,-1624.28,8.219e-05,2]
[422847742,1779522641000,-500.0,8.219e-05,2]
[422847755,1779522641000,-500.0,8.219e-05,2]
[422847659,1779522641000,-984.28227901,8.2e-05,2]
[422847688,1779522641000,-500.0,8.219e-05,2]
[422847575,1779522641000,-998.06241516,7.45e-05,2]
[422847740,1779522641000,-500.0,8.219e-05,2]
[422847621,1779522641000,-600.0,7.955e-05,2]
[422847627,1779522641000,-980.31292441,8e-05,2]
[422847647,1779522641000,-742.0,8.152e-05,2]
[422847663,1779522641000,-400.0,8.21e-05,3]
[422847710,1779522641000,-500.0,8.219e-05,2]
[422847726,1779522641000,-500.0,8.219e-05,2]
[422847734,1779522641000,-500.0,8.219e-05,2]
[422847759,1779522641000,-500.0,8.219e-05,2]
[422847559,1779522641000,-998.06241516,7.45e-05,2]
[422847569,1779522641000,-998.06241516,7.45e-05,2]
[422847673,1779522641000,-500.0,8.219e-05,2]
[422847606,1779522641000,-160.0,7.621e-05,2]
[422847676,1779522641000,-805.78,8.219e-05,2]
[422847600,1779522641000,-10266.5234864,7.551e-05,2]
[422847736,1779522641000,-511.26,8.219e-05,2]
[422847585,1779522641000,-151.0,7.495e-05,2]
[422847629,1779522641000,-241.88591987,8e-05,2]
[422847733,1779522641000,-684.52,8.219e-05,2]
[422847723,1779522641000,-500.0,8.219e-05,2]
[422847561,1779522641000,-998.06241516,7.45e-05,2]
[422847608,1779522641000,-766.63845589,7.621e-05,2]
[422847653,1779522641000,-984.28227901,8.2e-05,2]
[422847680,1779522641000,-163.1825041,8.219e-05,2]
[422847709,1779522641000,-1159.16,8.219e-05,2]
[422847718,1779522641000,-500.0,8.219e-05,2]
[422847757,1779522641000,-500.0,8.219e-05,2]
[422847593,1779522641000,-400.8408532,7.551e-05,2]
[422847643,1779522641000,-443.0,8.152e-05,2]
[422847645,1779522641000,-648.0,8.152e-05,2]
[422847649,1779522641000,-185.0,8.152e-05,2]
[422847729,1779522641000,-549.31,8.219e-05,2]
[422847698,1779522641000,-500.0,8.219e-05,2]
[422847717,1779522641000,-500.0,8.219e-05,2]
[422847721,1779522641000,-500.0,8.219e-05,2]
[422847686,1779522641000,-521.99,8.219e-05,2]
[422847614,1779522641000,-160.0,7.622e-05,2]
[422847595,1779522641000,-13725.2010483,7.551e-05,2]
[422847690,1779522641000,-550.5,8.219e-05,2]
[422847571,1779522641000,-998.06241516,7.45e-05,2]
[422847552,1779522641000,-950.53563348,7.45e-05,2]
[422847546,1779522641000,-950.53563348,7.45e-05,2]
[422847749,1779522641000,-924.25,8.219e-05,2]
[422847728,1779522641000,-760.63,8.219e-05,2]
[422847708,1779522641000,-500.0,8.219e-05,2]
[422847556,1779522641000,-950.53563348,7.45e-05,2]
[422847853,1779522642000,-500.0,8.219e-05,2]
[422847846,1779522642000,-532.29,8.219e-05,2]
[422847840,1779522642000,-500.0,8.219e-05,2]
[422847833,1779522642000,-603.47,8.219e-05,2]
[422847857,1779522642000,-500.0,8.219e-05,2]
[422847823,1779522642000,-500.0,8.219e-05,2]
[422847819,1779522642000,-880.84,8.219e-05,2]
[422847794,1779522642000,-553.08,8.219e-05,2]
[422847861,1779522642000,-500.0,8.219e-05,2]
[422847850,1779522642000,-500.0,8.219e-05,2]
[422847841,1779522642000,-601.61,8.219e-05,2]
[422847854,1779522642000,-500.0,8.219e-05,2]
[422847803,1779522642000,-773.34,8.219e-05,2]
[422847772,1779522642000,-500.0,8.219e-05,2]
[422847829,1779522642000,-500.0,8.219e-05,2]
[422847836,1779522642000,-500.0,8.219e-05,2]
[422847796,1779522642000,-848.75,8.219e-05,2]
[422847831,1779522642000,-903.24,8.219e-05,2]
[422847852,1779522642000,-559.05320977,8.219e-05,2]
[422847855,1779522642000,-500.0,8.219e-05,2]
[422847780,1779522642000,-500.0,8.219e-05,2]
[422847838,1779522642000,-414.65456933,8.219e-05,2]
[422847848,1779522642000,-500.0,8.219e-05,2]
[422847843,1779522642000,-500.0,8.219e-05,2]
[422847856,1779522642000,-823.17,8.219e-05,2]
[422847771,1779522642000,-500.0,8.219e-05,2]
[422847825,1779522642000,-1170.48,8.219e-05,2]
[422847787,1779522642000,-500.0,8.219e-05,2]
[422847844,1779522642000,-500.0,8.219e-05,2]
[422847865,1779522642000,-500.0,8.219e-05,2]
[422847769,1779522642000,-3836.07,8.219e-05,2]
[422847782,1779522642000,-500.0,8.219e-05,2]
[422847798,1779522642000,-1941.31,8.219e-05,2]
[422847804,1779522642000,-583.52,8.219e-05,2]
[422847808,1779522642000,-500.0,8.219e-05,2]
[422847821,1779522642000,-627.4,8.219e-05,2]
[422847839,1779522642000,-395.2914525,8.219e-05,2]
[422847858,1779522642000,-500.0,8.219e-05,2]
[422847868,1779522642000,-825.75,8.219e-05,2]
[422847763,1779522642000,-500.0,8.219e-05,2]
[422847817,1779522642000,-500.0,8.219e-05,2]
[422847765,1779522642000,-500.0,8.219e-05,2]
[422847789,1779522642000,-3771.01,8.219e-05,2]
[422847835,1779522642000,-549.99,8.219e-05,2]
[422847845,1779522642000,-500.0,8.219e-05,2]
[422847851,1779522642000,-174.78478396,8.219e-05,2]
[422847774,1779522642000,-1062.36,8.219e-05,2]
[422847800,1779522642000,-500.0,8.219e-05,2]
[422847815,1779522642000,-700.31,8.219e-05,2]
[422847860,1779522642000,-2784.25,8.219e-05,2]
[422847872,1779522642000,-151.0,8.219e-05,2]
[422847873,1779522642000,-151.0,8.219e-05,2]
[422847761,1779522642000,-2455.94,8.219e-05,2]
[422847837,1779522642000,-2347.77,8.219e-05,2]
[422847791,1779522642000,-1044.87,8.219e-05,2]
[422847871,1779522642000,-151.0,8.219e-05,2]
[422847898,1779522642000,-500.0,8.219e-05,2]
[422847776,1779522642000,-500.0,8.219e-05,2]
[422847917,1779522642000,-1906.95,8.219e-05,2]
[422847929,1779522642000,-500.0,8.219e-05,2]
[422847882,1779522642000,-282.0,8.219e-05,2]
[422847886,1779522642000,-500.0,8.219e-05,2]
[422847914,1779522642000,-500.0,8.219e-05,2]
[422847932,1779522642000,-642.13,8.219e-05,2]
[422847876,1779522642000,-151.0,8.219e-05,2]
[422847904,1779522642000,-7319.6,8.219e-05,2]
[422847921,1779522642000,-154.4129109,8.219e-05,2]
[422847877,1779522642000,-151.0,8.219e-05,2]
[422847884,1779522642000,-500.0,8.219e-05,2]
[422847919,1779522642000,-3822.56,8.219e-05,2]
[422847933,1779522642000,-500.0,8.219e-05,2]
[422847883,1779522642000,-1317.26,8.219e-05,2]
[422847916,1779522642000,-950.0,8.219e-05,2]
[422847927,1779522642000,-358.99836784,8.219e-05,2]
[422847905,1779522642000,-5006.38,8.219e-05,2]
[422847875,1779522642000,-151.0,8.219e-05,2]
[422847878,1779522642000,-151.0,8.219e-05,2]
[422847885,1779522642000,-500.0,8.219e-05,2]
[422847902,1779522642000,-500.0,8.219e-05,2]
[422847912,1779522642000,-500.0,8.219e-05,2]
[422847923,1779522642000,-500.0,8.219e-05,2]
[422847931,1779522642000,-500.0,8.219e-05,2]
[422847767,1779522642000,-930.87,8.219e-05,2]
[422847890,1779522642000,-500.0,8.219e-05,2]
[422847887,1779522642000,-500.0,8.219e-05,2]
[422847880,1779522642000,-151.0,8.219e-05,2]
[422847920,1779522642000,-500.0,8.219e-05,2]
[422847874,1779522642000,-151.0,8.219e-05,2]
[422847785,1779522642000,-500.0,8.219e-05,2]
[422847827,1779522642000,-936.85,8.219e-05,2]
[422847842,1779522642000,-1062.93,8.219e-05,2]
[422847778,1779522642000,-500.0,8.219e-05,2]
[422847863,1779522642000,-367.87925565,8.219e-05,2]
[422847870,1779522642000,-151.0,8.219e-05,2]
[422847806,1779522642000,-500.0,8.219e-05,2]
[422847847,1779522642000,-500.0,8.219e-05,2]
[422847849,1779522642000,-588.33,8.219e-05,2]
[422847867,1779522642000,-248.87519191,8.219e-05,2]
[422847869,1779522642000,-2673.23,8.219e-05,2]
[422847894,1779522642000,-1342.2,8.219e-05,2]
[422847792,1779522642000,-500.0,8.219e-05,2]
[422847907,1779522642000,-331.97723578,8.219e-05,2]
[422847909,1779522642000,-500.0,8.219e-05,2]
[422847895,1779522642000,-725.61,8.219e-05,2]
[422847892,1779522642000,-500.0,8.219e-05,2]
[422847888,1779522642000,-568.59,8.219e-05,2]
[422847911,1779522642000,-2370.66,8.219e-05,2]
[422847891,1779522642000,-516.78,8.219e-05,2]
[422847879,1779522642000,-151.0,8.219e-05,2]
[422847925,1779522642000,-919.44,8.219e-05,2]
[422847900,1779522642000,-500.0,8.219e-05,2]
[422847893,1779522642000,-1096.02,8.219e-05,2]
[422847881,1779522642000,-151.0,8.219e-05,2]
[422847889,1779522642000,-2184.12,8.219e-05,2]
[422847968,1779522643000,-500.0,8.219e-05,2]
[422847942,1779522643000,-500.0,8.219e-05,2]
[422848042,1779522643000,-4331.31,8.219e-05,2]
[422848026,1779522643000,-4054.65,8.219e-05,2]
[422848104,1779522643000,-166.18999417,8.219e-05,7]
[422848004,1779522643000,-894.62,8.219e-05,2]
[422847992,1779522643000,-500.0,8.219e-05,2]
[422848146,1779522643000,-414.18595473,8.478e-05,7]
[422848140,1779522643000,-365.54184209,8.423e-05,7]
[422848064,1779522643000,-53596.31,8.219e-05,2]
[422848000,1779522643000,-561.00951653,8.219e-05,2]
[422848010,1779522643000,-500.0,8.219e-05,2]
[422847982,1779522643000,-3777.66,8.219e-05,2]
[422848032,1779522643000,-2218.95,8.219e-05,2]
[422848036,1779522643000,-1573.6,8.219e-05,2]
[422848086,1779522643000,-2740.95,8.219e-05,2]
[422848109,1779522643000,-500.0,8.219e-05,2]
[422848002,1779522643000,-500.0,8.219e-05,2]
[422848024,1779522643000,-8299.03,8.219e-05,2]
[422848091,1779522643000,-7149.48,8.219e-05,2]
[422848126,1779522643000,-162.17572383,8.423e-05,7]
[422848136,1779522643000,-347.33373042,8.423e-05,7]
[422848148,1779522643000,-817.84108668,8.478e-05,7]
[422848012,1779522643000,-11343.66,8.219e-05,2]
[422848152,1779522643000,-324.40339829,8.479e-05,7]
[422848018,1779522643000,-500.0,8.219e-05,2]
[422848008,1779522643000,-836.05,8.219e-05,2]
[422848054,1779522643000,-2034.71,8.219e-05,2]
[422847980,1779522643000,-2296.31,8.219e-05,2]
[422847944,1779522643000,-1534.57,8.219e-05,2]
[422847970,1779522643000,-2635.18,8.219e-05,2]
[422848016,1779522643000,-4472.53,8.219e-05,2]
[422848122,1779522643000,-433.6896094,8.423e-05,7]
[422848150,1779522643000,-338.07115681,8.479e-05,7]
[422847960,1779522643000,-11669.11,8.219e-05,2]
[422848052,1779522643000,-560.81,8.219e-05,2]
[422848060,1779522643000,-500.0,8.219e-05,2]
[422848076,1779522643000,-1014.97,8.219e-05,2]
[422847966,1779522643000,-1016.89,8.219e-05,2]
[422847986,1779522643000,-1889.65,8.219e-05,2]
[422847996,1779522643000,-1214.59,8.219e-05,2]
[422848034,1779522643000,-500.0,8.219e-05,2]
[422848046,1779522643000,-151.0,8.219e-05,2]
[422848062,1779522643000,-500.0,8.219e-05,2]
[422848068,1779522643000,-500.0,8.219e-05,2]
[422848130,1779522643000,-422.60516239,8.423e-05,7]
[422847936,1779522643000,-500.0,8.219e-05,2]
[422847956,1779522643000,-592.52,8.219e-05,2]
[422847994,1779522643000,-3810.6,8.219e-05,2]
[422848072,1779522643000,-500.0,8.219e-05,2]
[422848114,1779522643000,-980.31292441,8.3e-05,2]
[422848142,1779522643000,-369.43836753,8.423e-05,7]
[422848154,1779522643000,-323.75667799,8.479e-05,7]
[422847946,1779522643000,-500.0,8.219e-05,2]
[422847998,1779522643000,-3408.86,8.219e-05,2]
[422847984,1779522643000,-500.0,8.219e-05,2]
[422848118,1779522643000,-241.88591984,8.386e-05,2]
[422848006,1779522643000,-500.0,8.219e-05,2]
[422848082,1779522643000,-1491.3,8.219e-05,2]
[422848094,1779522643000,-500.0,8.219e-05,2]
[422848098,1779522643000,-204.46027167,8.219e-05,7]
[422848124,1779522643000,-346.44576731,8.423e-05,7]
[422848134,1779522643000,-367.56286318,8.423e-05,7]
[422847952,1779522643000,-500.0,8.219e-05,2]
[422848022,1779522643000,-500.0,8.219e-05,2]
[422848040,1779522643000,-500.0,8.219e-05,2]
[422848128,1779522643000,-372.82166573,8.423e-05,7]
[422847934,1779522643000,-500.0,8.219e-05,2]
[422847964,1779522643000,-500.0,8.219e-05,2]
[422847976,1779522643000,-500.0,8.219e-05,2]
[422848028,1779522643000,-500.0,8.219e-05,2]
[422848057,1779522643000,-8529.45,8.219e-05,2]
[422848089,1779522643000,-10300.39,8.219e-05,2]
[422848116,1779522643000,-2449.46202015,8.323e-05,2]
[422847962,1779522643000,-1407.6,8.219e-05,2]
[422847978,1779522643000,-500.0,8.219e-05,2]
[422847990,1779522643000,-7788.78,8.219e-05,2]
[422848014,1779522643000,-500.0,8.219e-05,2]
[422848038,1779522643000,-500.0,8.219e-05,2]
[422848044,1779522643000,-339.81134291,8.219e-05,2]
[422848049,1779522643000,-3166.04,8.219e-05,2]
[422848100,1779522643000,-408.92054334,8.219e-05,7]
[422847988,1779522643000,-617.86,8.219e-05,2]
[422847974,1779522643000,-438.24643045,8.219e-05,2]
[422847938,1779522643000,-647.49,8.219e-05,2]
[422847972,1779522643000,-3803.04,8.219e-05,2]
[422848087,1779522643000,-891.69,8.219e-05,2]
[422848030,1779522643000,-500.0,8.219e-05,2]
[422848138,1779522643000,-338.50535769,8.423e-05,7]
[422848078,1779522643000,-4349.05,8.219e-05,2]
[422848096,1779522643000,-169.66609889,8.219e-05,7]
[422848112,1779522643000,-984.28227901,8.3e-05,2]
[422848102,1779522643000,-613.38081501,8.219e-05,7]
[422848120,1779522643000,-483.45646145,8.412e-05,7]
[422848156,1779522643000,-427.26719427,8.479e-05,7]
[422848055,1779522643000,-698.28,8.219e-05,2]
[422848065,1779522643000,-500.0,8.219e-05,2]
[422848084,1779522643000,-500.0,8.219e-05,2]
[422848106,1779522643000,-241.72823072,8.219e-05,7]
[422848160,1779522643000,-1221.4739,8.493e-05,2]
[422847950,1779522643000,-500.0,8.219e-05,2]
[422848020,1779522643000,-500.0,8.219e-05,2]
[422847940,1779522643000,-472.77487268,8.219e-05,2]
[422847948,1779522643000,-762.05,8.219e-05,2]
[422848158,1779522643000,-342.85092098,8.479e-05,7]
[422848144,1779522643000,-314.65930528,8.423e-05,7]
[422848074,1779522643000,-500.0,8.219e-05,2]
[422848108,1779522643000,-171.42546049,8.219e-05,7]
[422848132,1779522643000,-382.18388229,8.423e-05,7]
[422848069,1779522643000,-3345.98,8.219e-05,2]
[422848048,1779522643000,-500.0,8.219e-05,2]
[422847958,1779522643000,-3632.74,8.219e-05,2]
[422847954,1779522643000,-1298.03,8.219e-05,2]
[422848080,1779522643000,-500.0,8.219e-05,2]
[422848283,1779522644000,-3836.07,8.493e-05,2]
[422848250,1779522644000,-500.0,8.493e-05,2]
[422848240,1779522644000,-549.31,8.493e-05,2]
[422848280,1779522644000,-500.0,8.493e-05,2]
[422848272,1779522644000,-500.0,8.493e-05,2]
[422848217,1779522644000,-500.0,8.493e-05,2]
[422848233,1779522644000,-500.0,8.493e-05,2]
[422848310,1779522644000,-848.75,8.493e-05,2]
[422848300,1779522644000,-500.0,8.493e-05,2]
[422848231,1779522644000,-1659.56,8.493e-05,2]
[422848289,1779522644000,-1062.36,8.493e-05,2]